bitfinex-derivatives/quotes_BTCF0:USTF0_20260113
["timestamp","ask_amount","ask_price","bid_price","bid_amount"]
[1768309834378,0.010865,92128.0,92113.0,0.0286664]
[1768309834567,0.010865,92128.0,92112.0,0.02022313]
[1768309835280,0.004,92119.0,92112.0,0.02022313]
[1768309835578,0.13092124,92130.0,92115.0,0.010866]
[1768309835876,0.13092124,92130.0,92112.0,0.00935613]
[1768309836068,0.006,92128.0,92114.0,0.010866]
[1768309836771,0.15092124,92130.0,92115.0,0.004]
[1768309838077,0.18516236,92130.0,92115.0,0.004]
[1768309838763,0.16516236,92130.0,92114.0,0.010866]
[1768309838969,0.004,92128.0,92114.0,0.012866]
[1768309839172,0.004,92128.0,92114.0,0.002]
[1768309839377,0.004,92128.0,92110.0,0.13092124]
[1768309839576,0.010865,92129.0,92110.0,0.13092124]
[1768309839778,0.010865,92129.0,92115.0,0.002]
[1768309840678,0.04510612,92129.0,92115.0,0.002]
[1768309841979,0.003,92128.0,92113.0,0.010866]
[1768309842374,0.03724112,92128.0,92113.0,0.010866]
[1768309843369,0.03724112,92128.0,92115.0,0.012]
[1768309843370,0.03424112,92128.0,92115.0,0.012]
[1768309844583,0.04510612,92128.0,92115.0,0.012]
[1768309844777,0.03424112,92123.0,92113.0,0.01]
[1768309844974,0.03424112,92123.0,92087.0,0.94983]
[1768309844975,0.13092124,92112.0,92096.0,0.010869]
[1768309845182,0.03424112,92109.0,92097.0,0.0978]
[1768309845484,0.14026341,92110.0,92097.0,0.0978]
[1768309845672,0.00934217,92110.0,92098.0,0.010868]
[1768309845872,0.03424112,92115.0,92101.0,0.010868]
[1768309846081,0.13092124,92110.0,92098.0,0.010868]
[1768309846480,0.003,92109.0,92098.0,0.010868]
[1768309847185,0.003,92109.0,92097.0,0.011868]
[1768309847383,0.003,92109.0,92098.0,0.010868]
[1768309847778,0.03424112,92115.0,92098.0,0.020868]
[1768309847983,0.004,92110.0,92098.0,0.020868]
[1768309848568,0.010866,92114.0,92098.0,0.010868]
[1768309848773,0.004,92109.0,92100.0,0.010868]
[1768309849073,0.004,92109.0,92098.0,0.022868]
[1768309849582,0.004,92110.0,92098.0,0.021868]
[1768309850881,0.010867,92113.0,92096.0,0.12993331]
[1768309851183,0.005,92109.0,92098.0,0.013]
[1768309851784,0.005,92110.0,92098.0,0.013]
[1768309852382,0.1810866,92110.0,92098.0,0.013]
[1768309852578,0.03924112,92109.0,92098.0,0.014]
[1768309852780,0.010868,92102.0,92092.0,0.09780205]
[1768309852984,0.010868,92103.0,92088.0,0.0978]
[1768309853575,0.03424112,92104.0,92088.0,0.0978]
[1768309854077,0.00934217,92105.0,92088.0,0.0978]
[1768309854478,0.00934217,92105.0,92091.0,0.010869]
[1768309854672,0.00934217,92105.0,92098.0,0.011]
[1768309854879,0.00934217,92105.0,92091.0,0.010869]
[1768309855274,0.13497848,92110.0,92088.0,0.0978]
[1768309855275,0.03424112,92102.0,92088.0,0.0978]
[1768309855579,0.03424112,92102.0,92088.0,0.1078]
[1768309855884,0.03424112,92102.0,92088.0,0.11867]
[1768309856082,0.03424112,92102.0,92088.0,0.10867]
[1768309856288,0.02021017,92103.0,92091.0,0.01]
[1768309857386,0.00934217,92103.0,92091.0,0.01]
[1768309857771,0.006,92102.0,92088.0,0.10867]
[1768309858390,0.00934217,92103.0,92088.0,0.10867]
[1768309858574,0.01534217,92103.0,92088.0,0.10867]
[1768309858778,0.01534217,92103.0,92090.0,0.010869]
[1768309859285,0.006,92102.0,92090.0,0.010869]
[1768309859987,0.006,92102.0,92088.0,0.10867]
[1768309860489,0.006,92102.0,92090.0,0.010869]
[1768309860700,0.010868,92105.0,92089.0,0.010869]
[1768309860892,0.009,92103.0,92089.0,0.010869]
[1768309861089,0.009,92103.0,92090.0,0.03213331]
[1768309861292,0.009,92103.0,92091.0,0.03213331]
[1768309861479,0.010867,92107.0,92091.0,0.03213331]
[1768309861685,0.009,92102.0,92091.0,0.03213331]
[1768309862184,0.04358329,92111.0,92091.0,0.03213331]
[1768309862494,0.009,92103.0,92091.0,0.02813331]
[1768309863391,0.009,92103.0,92090.0,0.00923511]
[1768309863690,0.010869,92093.0,92074.0,0.10703511]
[1768309863889,0.010869,92096.0,92078.0,0.010871]
[1768309864083,0.010869,92095.0,92077.0,0.00923511]
[1768309864278,0.010869,92096.0,92077.0,0.00923511]
[1768309864484,0.010869,92096.0,92078.0,0.03213331]
[1768309864778,7.885e-05,92095.0,92080.0,0.04479709]
[1768309865092,7.885e-05,92095.0,92081.0,0.00951169]
[1768309865291,7.885e-05,92095.0,92082.0,0.04479709]
[1768309865492,7.885e-05,92095.0,92083.0,0.01087]
[1768309865686,7.885e-05,92095.0,92082.0,0.04479709]
[1768309866286,7.885e-05,92095.0,92081.0,0.00951169]
[1768309866681,7.885e-05,92095.0,92082.0,0.01087]
[1768309867097,0.00607885,92095.0,92082.0,0.01087]
[1768309867698,7.885e-05,92095.0,92082.0,0.01087]
[1768309867888,0.00607885,92095.0,92082.0,0.01087]
[1768309868090,0.00607885,92095.0,92081.0,0.00951169]
[1768309868289,0.010869,92093.0,92078.0,0.04479709]
[1768309868793,0.010869,92093.0,92076.0,0.010871]
[1768309868991,0.00607885,92095.0,92083.0,0.05430878]
[1768309869297,0.18265921,92110.0,92087.0,0.04479709]
[1768309869500,0.04173649,92108.0,92087.0,0.04479709]
[1768309869800,0.010868,92105.0,92087.0,0.04479709]
[1768309869998,0.006,92093.0,92087.0,0.04479709]
[1768309870199,4.808e-05,92092.0,92087.0,0.04230878]
[1768309870494,0.006,92093.0,92087.0,0.04230878]
[1768309870700,0.010868,92103.0,92087.0,0.04230878]
[1768309870900,0.1048,92102.0,92088.0,0.010869]
[1768309871501,0.0978,92102.0,92088.0,0.010869]
[1768309871800,0.0978,92102.0,92090.0,0.010869]
[1768309872302,0.0978,92102.0,92091.0,0.010869]
[1768309872691,0.0978,92102.0,92088.0,0.04479709]
[1768309872992,0.05260349,92108.0,92088.0,0.04479709]
[1768309873198,0.0978,92107.0,92088.0,0.04479709]
[1768309873498,0.0978,92107.0,92090.0,0.010869]
[1768309873698,0.006,92102.0,92090.0,0.010869]
[1768309873900,0.006,92102.0,92088.0,0.04779709]
[1768309874101,0.006,92102.0,92089.0,0.010869]
[1768309874291,0.010867,92106.0,92089.0,0.010869]
[1768309874487,0.010867,92106.0,92088.0,0.05866709]
[1768309875485,0.006,92107.0,92089.0,0.15215162]
[1768309875707,0.010867,92112.0,92097.0,0.05435162]
[1768309876004,0.010866,92115.0,92097.0,0.06521962]
[1768309876199,0.15557329,92118.0,92097.0,0.06521962]
[1768309876200,0.006,92102.0,92097.0,0.04457243]
[1768309876402,0.010867,92113.0,92094.0,0.010869]
[1768309876603,0.010867,92109.0,92093.0,0.04457243]
[1768309876895,0.016867,92112.0,92097.0,0.002]
[1768309877604,0.010867,92112.0,92096.0,0.010869]
[1768309877793,0.006,92109.0,92093.0,0.04657243]
[1768309877995,0.006,92109.0,92094.0,0.02757243]
[1768309878604,0.006,92109.0,92094.0,0.03844143]
[1768309878799,0.006,92109.0,92096.0,0.010869]
[1768309879200,0.004,92112.0,92097.0,0.012]
[1768309879999,0.004,92109.0,92097.0,0.010868]
[1768309880401,0.004,92109.0,92096.0,0.013]
[1768309880801,0.010867,92111.0,92097.0,0.012]
[1768309882304,0.003,92109.0,92097.0,0.010868]
[1768309883109,0.003,92111.0,92097.0,0.016868]
[1768309883808,0.003,92109.0,92097.0,0.017868]
[1768309885299,0.010867,92112.0,92097.0,0.010868]
[1768309885499,0.003,92111.0,92097.0,0.017868]
[1768309885800,0.003,92111.0,92097.0,0.007]
[1768309886101,0.003,92111.0,92094.0,0.02757243]
[1768309886102,0.010867,92112.0,92094.0,0.02757243]
[1768309886302,0.003,92109.0,92097.0,0.008]
[1768309886599,0.003,92109.0,92097.0,0.018868]
[1768309887005,0.003,92111.0,92097.0,0.017868]
[1768309888404,0.02070688,92114.0,92097.0,0.010868]
[1768309888610,0.003,92109.0,92097.0,0.018868]
[1768309889008,0.003,92109.0,92098.0,0.04457243]
[1768309889223,0.003,92111.0,92101.0,0.010868]
[1768309890006,0.14573241,92118.0,92101.0,0.010868]
[1768309890213,0.003,92109.0,92101.0,0.010868]
[1768309890410,0.0978,92118.0,92102.0,0.05544043]
[1768309890604,0.0978,92118.0,92103.0,0.010868]
[1768309891407,0.108666,92118.0,92103.0,0.010868]
[1768309891615,0.003,92111.0,92103.0,0.010868]
[1768309892408,0.108666,92118.0,92103.0,0.017868]
[1768309892601,0.111666,92118.0,92103.0,0.017868]
[1768309893107,0.111666,92118.0,92103.0,0.010868]
[1768309893314,0.003,92111.0,92103.0,0.019868]
[1768309893498,0.003,92111.0,92103.0,0.005868]
[1768309895110,0.003,92111.0,92103.0,0.05742081]
[1768309895412,0.010866,92116.0,92103.0,0.007]
[1768309896118,0.003,92111.0,92103.0,0.009]
[1768309896917,0.013866,92116.0,92103.0,0.008]
[1768309898320,0.010866,92116.0,92100.0,0.05155281]
[1768309898519,0.003,92111.0,92103.0,0.009]
[1768309899122,0.0978,92118.0,92100.0,0.05155281]
[1768309899321,0.003,92116.0,92103.0,0.008]
[1768309899519,0.003,92116.0,92103.0,0.06883535]
[1768309900016,0.003,92111.0,92103.0,0.06583535]
[1768309900223,0.06112621,92123.0,92103.0,0.05655281]
[1768309900411,0.0978,92122.0,92103.0,0.05655281]
[1768309900810,0.010866,92119.0,92103.0,0.05655281]
[1768309901421,0.010866,92116.0,92103.0,0.05655281]
[1768309901619,0.013866,92116.0,92103.0,0.04355281]
[1768309903426,0.015866,92119.0,92103.0,0.05083535]
[1768309903716,0.015866,92119.0,92104.0,0.05155281]
[1768309903924,0.015866,92119.0,92104.0,0.06083535]
[1768309905123,0.002,92116.0,92104.0,0.06083535]
[1768309905511,0.010866,92117.0,92106.0,0.05155281]
[1768309906616,0.003,92116.0,92106.0,0.05155281]
[1768309907307,0.010866,92117.0,92106.0,0.05155281]
[1768309908625,0.012866,92117.0,92106.0,0.05755281]
[1768309909412,0.012866,92117.0,92106.0,0.04055281]
[1768309911125,0.012866,92117.0,92106.0,0.04155281]
[1768309911620,0.010866,92116.0,92106.0,0.007]
[1768309912020,0.010866,92116.0,92106.0,0.009]
[1768309912818,0.012866,92116.0,92106.0,0.009]
[1768309914129,0.012866,92116.0,92106.0,0.06055281]
[1768309914326,0.012866,92116.0,92106.0,0.009]
[1768309914635,0.012866,92116.0,92106.0,0.007]
[1768309915730,0.010866,92116.0,92103.0,0.05155281]
[1768309916024,0.012866,92116.0,92106.0,0.007]
[1768309917131,0.012866,92116.0,92103.0,0.04655281]
[1768309917624,0.010866,92116.0,92103.0,0.04655281]
[1768309917828,0.012866,92116.0,92106.0,0.005]
[1768309918530,0.012866,92116.0,92103.0,0.006]
[1768309919024,0.002,92116.0,92103.0,0.006]
[1768309919225,0.002,92116.0,92103.0,0.05755281]
[1768309919425,0.002,92116.0,92106.0,0.005]
[1768309920434,0.002,92116.0,92095.0,0.0978]
[1768309920435,0.06112621,92108.0,92095.0,0.0978]
[1768309920622,0.010868,92100.0,92090.0,0.0978]
[1768309920824,0.010868,92101.0,92089.0,0.0978]
[1768309921130,0.010866,92115.0,92097.0,0.05155281]
[1768309921131,0.010867,92112.0,92097.0,0.05155281]
[1768309921325,0.010867,92112.0,92092.0,0.02015154]
[1768309921529,0.010867,92112.0,92103.0,0.002]
[1768309921747,0.010867,92110.0,92093.0,0.05155281]
[1768309922539,0.010867,92110.0,92097.0,0.002]
[1768309923035,0.003,92112.0,92097.0,0.002]
[1768309923532,0.06112621,92109.0,92097.0,0.002]
[1768309923730,0.010869,92090.0,92074.0,0.04718215]
[1768309924035,0.14182195,92090.0,92074.0,0.04718215]
[1768309925331,0.00916873,92099.0,92075.0,0.00914822]
[1768309925536,0.0630186,92096.0,92075.0,0.00914822]
[1768309925844,0.13395295,92090.0,92076.0,0.05635651]
[1768309926026,0.003,92090.0,92078.0,0.05635651]
[1768309926227,0.13395295,92090.0,92078.0,0.05635651]
[1768309926534,0.13095295,92090.0,92074.0,0.05635651]
[1768309926724,0.13095295,92090.0,92075.0,0.05935651]
[1768309927323,0.010869,92091.0,92075.0,0.05935651]
[1768309928243,0.010869,92091.0,92075.0,0.05635651]
[1768309928438,0.004,92090.0,92078.0,0.006]
[1768309928632,0.13495295,92090.0,92078.0,0.006]
[1768309929239,0.13095295,92090.0,92076.0,0.06722751]
[1768309929840,0.13095295,92090.0,92076.0,0.05322751]
[1768309930036,0.13495295,92090.0,92078.0,0.006]
[1768309931039,0.13495295,92090.0,92078.0,0.016871]
[1768309932233,0.13495295,92090.0,92078.0,0.010871]
[1768309932935,0.13095295,92090.0,92078.0,0.010871]
[1768309933137,0.13495295,92090.0,92078.0,0.022871]
[1768309934045,0.13495295,92090.0,92078.0,0.012]
[1768309934434,0.004,92090.0,92078.0,0.012]
[1768309934641,0.13495295,92090.0,92076.0,0.01906751]
[1768309934840,0.13495295,92090.0,92075.0,0.010871]
[1768309935441,0.13495295,92090.0,92073.0,0.0978]
[1768309935641,0.00916873,92096.0,92081.0,0.01087]
[1768309935944,0.003,92090.0,92081.0,0.01087]
[1768309936337,0.003,92090.0,92080.0,0.13095295]
[1768309936532,0.003,92090.0,92076.0,0.0096645]
[1768309936737,0.003,92090.0,92080.0,0.13095295]
[1768309936946,0.003,92090.0,92082.0,0.01087]
[1768309937541,0.003,92090.0,92080.0,0.11282295]
[1768309938347,0.00916873,92096.0,92080.0,0.11282295]
[1768309938545,0.007,92090.0,92082.0,0.01087]
[1768309939242,0.011,92090.0,92082.0,0.01087]
[1768309939648,0.011,92090.0,92080.0,0.1772598]
[1768309940047,0.06001598,92099.0,92083.0,0.01087]
[1768309940633,0.06997213,92099.0,92083.0,0.01087]
[1768309941850,0.06997213,92099.0,92082.0,0.004]
[1768309941851,0.06997213,92099.0,92085.0,0.01087]
[1768309942038,0.06997213,92099.0,92082.0,0.004]
[1768309942240,0.06997213,92099.0,92080.0,0.1732598]
[1768309942446,0.003,92090.0,92080.0,0.1782598]
[1768309942945,0.003,92090.0,92080.0,0.06543685]
[1768309943147,0.06997213,92096.0,92082.0,0.003]
[1768309943351,0.00995615,92096.0,92083.0,0.01087]
[1768309944851,0.003,92090.0,92083.0,0.01087]
[1768309945251,0.003,92090.0,92080.0,0.12482295]
[1768309945453,0.003,92090.0,92080.0,0.004]
[1768309945645,0.003,92090.0,92080.0,0.13495295]
[1768309946352,0.07497213,92096.0,92083.0,0.003]
[1768309946553,0.07497213,92096.0,92083.0,0.01387]
[1768309946955,0.06997213,92096.0,92083.0,0.01087]
[1768309947246,0.003,92090.0,92083.0,0.01087]
[1768309948857,0.07297213,92096.0,92083.0,0.01387]
[1768309949058,0.01295615,92096.0,92083.0,0.01387]
[1768309949649,0.003,92090.0,92083.0,0.01587]
[1768309950657,0.01295615,92096.0,92083.0,0.01387]
[1768309951256,0.06001598,92098.0,92083.0,0.01387]
[1768309952058,0.07088398,92098.0,92083.0,0.003]
[1768309952255,0.003,92090.0,92083.0,0.005]
[1768309952961,0.07088398,92098.0,92080.0,0.12982295]
[1768309953259,0.07488398,92098.0,92083.0,0.003]
[1768309953852,0.003,92090.0,92083.0,0.006]
[1768309955546,0.07488398,92098.0,92083.0,0.005]
[1768309956365,0.004,92090.0,92083.0,0.008]
[1768309956566,0.07088398,92098.0,92083.0,0.008]
[1768309956868,0.07264443,92096.0,92083.0,0.008]
[1768309957052,0.07264443,92096.0,92082.0,0.01087]
[1768309957253,0.07264443,92096.0,92083.0,0.007]
[1768309958766,0.07264443,92096.0,92082.0,0.01087]
[1768309958967,0.07664443,92096.0,92083.0,0.007]
[1768309959661,0.07264443,92096.0,92082.0,0.01087]
[1768309959966,0.07664443,92096.0,92083.0,0.008]
[1768309960463,0.07264443,92096.0,92082.0,0.01087]
[1768309960663,0.07664443,92096.0,92083.0,0.008]
[1768309961567,0.07664443,92096.0,92080.0,0.13095295]
[1768309962567,0.07664443,92096.0,92082.0,0.01087]
[1768309962762,0.07664443,92096.0,92082.0,0.01687]
[1768309964068,0.07264443,92096.0,92082.0,0.01087]
[1768309964269,0.07664443,92096.0,92082.0,0.01087]
[1768309965161,0.07664443,92096.0,92080.0,0.13695295]
[1768309965369,0.07664443,92096.0,92083.0,0.01087]
[1768309966574,0.07264443,92096.0,92083.0,0.01087]
[1768309966760,0.07664443,92096.0,92083.0,0.01087]
[1768309967064,0.07664443,92096.0,92067.0,0.05165705]
[1768309967065,0.00900402,92066.0,92040.0,7.938e-05]
[1768309967264,0.00900402,92054.0,92040.0,0.01095438]
[1768309967458,0.00900402,92059.0,92040.0,0.13103233]
[1768309967654,0.010873,92058.0,92040.0,0.13103233]
[1768309967860,0.010873,92057.0,92040.0,0.13103233]
[1768309968060,0.00900402,92059.0,92040.0,0.13103233]
[1768309968261,0.010873,92058.0,92040.0,0.13103233]
[1768309968665,0.010873,92056.0,92040.0,0.13103233]
[1768309969271,0.010873,92056.0,92038.0,0.083169]
[1768309969472,0.010873,92056.0,92040.0,0.13095295]
[1768309969668,0.004,92054.0,92040.0,0.13595295]
[1768309970275,0.010873,92056.0,92040.0,0.13095295]
[1768309970276,7.938e-05,92053.0,92040.0,0.13095295]
[1768309971163,7.938e-05,92053.0,92040.0,0.21271273]
[1768309971359,7.938e-05,92053.0,92040.0,0.08175978]
[1768309971667,7.938e-05,92053.0,92041.0,0.00946578]
[1768309971874,7.938e-05,92053.0,92042.0,0.072294]
[1768309972075,7.938e-05,92053.0,92044.0,0.072294]
[1768309972276,0.09784,92063.0,92046.0,0.08175978]
[1768309972469,0.09784,92063.0,92051.0,0.08175978]
[1768309973065,0.010872,92064.0,92051.0,0.08175978]
[1768309974672,0.015872,92064.0,92051.0,0.08775978]
[1768309975178,0.010873,92062.0,92051.0,0.006]
[1768309975676,0.010873,92060.0,92045.0,0.00946578]
[1768309975877,0.010873,92060.0,92046.0,0.09784]
[1768309976577,0.08351743,92063.0,92046.0,0.09784]
[1768309976969,0.08351743,92063.0,92046.0,0.06684]
[1768309977878,0.005,92062.0,92051.0,0.004]
[1768309978579,0.010873,92063.0,92046.0,0.14859978]
[1768309978769,0.015873,92063.0,92046.0,0.15259978]
[1768309978972,0.015873,92063.0,92047.0,0.00946578]
[1768309979475,0.005,92062.0,92051.0,0.004]
[1768309981174,0.007,92063.0,92049.0,0.08175978]
[1768309981874,0.010872,92066.0,92049.0,0.08175978]
[1768309982079,0.006,92062.0,92051.0,0.004]
[1768309982665,0.006,92062.0,92049.0,0.08175978]
[1768309982872,0.007,92063.0,92050.0,0.08175978]
[1768309984481,0.004,92062.0,92051.0,0.004]
[1768309984680,0.004,92062.0,92050.0,0.08175978]
[1768309984681,0.004,92062.0,92050.0,0.07575978]
[1768309985173,0.09101653,92076.0,92053.0,0.09016207]
[1768309985374,0.09101653,92076.0,92052.0,0.010874]
[1768309985375,0.010872,92070.0,92056.0,0.09016207]
[1768309985881,0.010872,92071.0,92056.0,0.09016207]
[1768309986083,0.19829829,92079.0,92056.0,0.09016207]
[1768309986084,0.09101653,92078.0,92056.0,0.09016207]
[1768309986579,0.10045829,92078.0,92056.0,0.09016207]
[1768309986775,0.09101653,92076.0,92056.0,0.09016207]
[1768309987774,0.004,92071.0,92056.0,0.10660417]
[1768309987970,0.004,92071.0,92057.0,0.0094421]
[1768309988184,0.004,92071.0,92058.0,0.09016207]
[1768309988571,0.00944176,92078.0,92058.0,0.09016207]
[1768309988871,0.010871,92073.0,92061.0,0.0094421]
[1768309989073,0.010871,92073.0,92062.0,0.09016207]
[1768309990774,0.004,92071.0,92062.0,0.09016207]
[1768309991370,0.004,92071.0,92061.0,0.0094421]
[1768309991573,0.004,92073.0,92062.0,0.008]
[1768309991774,0.010872,92071.0,92062.0,0.008]
[1768309992285,0.010872,92070.0,92062.0,0.008]
[1768309993389,0.010872,92070.0,92058.0,0.18600207]
[1768309994086,0.010872,92070.0,92062.0,0.008]
[1768309995093,0.010872,92070.0,92058.0,0.18600207]
[1768309995283,0.014872,92070.0,92058.0,0.19500207]
[1768309996097,0.010872,92068.0,92058.0,0.19500207]
[1768309997595,0.010872,92068.0,92058.0,0.18600207]
[1768309997794,0.010872,92068.0,92062.0,0.005]
[1768309998897,0.010872,92068.0,92058.0,0.18600207]
[1768309999195,0.015872,92068.0,92058.0,0.19400207]
[1768309999391,0.005,92068.0,92058.0,0.19400207]
[1768309999790,0.010872,92071.0,92058.0,0.19400207]
[1768310000894,0.010872,92071.0,92058.0,0.18600207]
[1768310001099,0.004,92068.0,92058.0,0.18500207]
[1768310001801,0.014872,92071.0,92058.0,0.18900207]
[1768310002598,0.010872,92071.0,92058.0,0.18500207]
[1768310002898,0.004,92068.0,92058.0,0.19000207]
[1768310003799,0.004,92068.0,92059.0,0.0905249]
[1768310004301,0.010872,92071.0,92059.0,0.0905249]
[1768310004504,0.014872,92071.0,92059.0,0.09965551]
[1768310004892,0.010871,92078.0,92059.0,0.09965551]
[1768310005093,0.19272065,92084.0,92063.0,0.010872]
[1768310005399,0.09488065,92083.0,92064.0,0.00913061]
[1768310005905,0.09488065,92081.0,92063.0,0.010872]
[1768310006095,0.005,92078.0,92063.0,0.010872]
[1768310007003,0.005,92078.0,92063.0,0.11052751]
[1768310007299,0.005,92078.0,92065.0,0.09965551]
[1768310007493,0.09784,92084.0,92065.0,0.09965551]
[1768310007999,0.004,92083.0,92065.0,0.09965551]
[1768310008198,0.09488065,92086.0,92067.0,0.0905249]
[1768310008397,0.010871,92080.0,92067.0,0.0905249]
[1768310008902,0.010871,92078.0,92067.0,0.0825249]
[1768310009508,0.003,92084.0,92067.0,0.0825249]
[1768310009806,0.010871,92078.0,92067.0,0.0825249]
[1768310010605,0.010871,92078.0,92067.0,0.0905249]
[1768310010807,0.010871,92078.0,92067.0,0.008]
[1768310011299,0.010871,92078.0,92066.0,0.00913061]
[1768310011514,0.014871,92078.0,92067.0,0.01]
[1768310012402,0.010871,92077.0,92067.0,0.01]
[1768310012702,0.09488065,92084.0,92067.0,0.01]
[1768310012898,0.09488065,92082.0,92067.0,0.01]
[1768310013807,0.00998371,92084.0,92067.0,0.01]
[1768310014304,0.010871,92078.0,92069.0,0.0905249]
[1768310014607,0.10486436,92089.0,92069.0,0.0905249]
[1768310015204,0.003,92084.0,92069.0,0.0905249]
[1768310015409,0.01087,92081.0,92069.0,0.0905249]
[1768310015902,0.003,92084.0,92073.0,0.09776923]
[1768310016106,0.003,92089.0,92072.0,0.0099855]
[1768310016499,0.003,92089.0,92072.0,0.0009855]
[1768310016700,0.01087,92081.0,92072.0,0.0009855]
[1768310016901,0.01087,92081.0,92069.0,0.10576923]
[1768310017208,0.010871,92079.0,92069.0,0.008]
[1768310018409,0.010871,92079.0,92067.0,0.09776923]
[1768310018609,0.010871,92079.0,92069.0,0.014]
[1768310019112,0.014871,92079.0,92069.0,0.015]
[1768310020917,0.004,92079.0,92069.0,0.015]
[1768310021310,0.004,92079.0,92067.0,0.09776923]
[1768310021516,0.003,92079.0,92069.0,0.01]
[1768310022413,0.01087,92081.0,92067.0,0.10776923]
[1768310022605,0.003,92079.0,92067.0,0.10776923]
[1768310024420,0.003,92079.0,92069.0,0.009]
[1768310024621,0.013871,92079.0,92069.0,0.009]
[1768310025725,0.010871,92079.0,92065.0,0.0099855]
[1768310025925,0.013871,92079.0,92067.0,0.009]
[1768310026426,0.013871,92079.0,92067.0,0.10676923]
[1768310027224,0.003,92079.0,92067.0,0.10676923]
[1768310028232,0.003,92079.0,92069.0,0.009]
[1768310029027,0.003,92079.0,92067.0,0.10576923]
[1768310029733,0.01087,92081.0,92067.0,0.09776923]
[1768310029935,0.003,92079.0,92069.0,0.008]
[1768310031336,0.003,92079.0,92069.0,0.13905359]
[1768310031632,0.003,92079.0,92067.0,0.10676923]
[1768310031934,0.003,92079.0,92069.0,0.21882282]
[1768310032728,0.010871,92078.0,92069.0,0.22882282]
[1768310033039,0.010871,92078.0,92069.0,0.23782282]
[1768310033337,0.010871,92078.0,92069.0,0.10676923]
[1768310034233,0.010869,92091.0,92075.0,0.10775473]
[1768310034531,0.010869,92091.0,92075.0,0.09776923]
[1768310034738,0.01087,92083.0,92075.0,0.09776923]
[1768310034928,0.010869,92091.0,92075.0,0.09776923]
[1768310035641,0.01087,92083.0,92075.0,0.10176923]
[1768310035939,0.13305359,92090.0,92075.0,0.10176923]
[1768310036238,0.13105359,92090.0,92075.0,0.09776923]
[1768310036540,0.13305359,92090.0,92075.0,0.004]
[1768310036732,0.01087,92083.0,92075.0,0.004]
[1768310036923,0.13305359,92090.0,92075.0,0.004]
[1768310036924,0.01087,92081.0,92075.0,0.004]
[1768310037841,0.01087,92081.0,92072.0,0.09776923]
[1768310038040,0.01087,92081.0,92075.0,0.001]
[1768310038941,0.01187,92081.0,92075.0,0.001]
[1768310039139,0.13105359,92090.0,92075.0,0.001]
[1768310040041,0.010871,92080.0,92075.0,0.001]
[1768310040430,0.13105359,92090.0,92075.0,0.001]
[1768310040431,0.010871,92078.0,92075.0,0.001]
[1768310040936,0.010871,92078.0,92070.0,0.0099855]
[1768310041132,0.010871,92078.0,92075.0,0.001]
[1768310041437,0.010871,92076.0,92070.0,0.0099855]
[1768310041825,0.010871,92076.0,92069.0,0.19560923]
[1768310042737,0.010871,92076.0,92069.0,0.09784]
[1768310043039,0.010872,92066.0,92060.0,0.09776923]
[1768310043237,0.010873,92059.0,92056.0,0.09784]
[1768310043440,0.010873,92059.0,92053.0,0.09784]
[1768310043745,0.010873,92061.0,92053.0,0.09784]
[1768310044638,0.010872,92064.0,92053.0,0.09784]
[1768310045144,0.001,92061.0,92053.0,0.10184]
[1768310045942,0.010872,92067.0,92053.0,0.09784]
[1768310046139,0.001,92064.0,92053.0,0.10084]
[1768310046636,0.001,92064.0,92053.0,0.08584]
[1768310047741,0.001,92061.0,92053.0,0.08584]
[1768310048042,0.001,92061.0,92053.0,0.18316557]
[1768310048339,0.010872,92066.0,92054.0,0.09732557]
[1768310048643,0.010872,92067.0,92054.0,0.09732557]
[1768310048826,0.13105359,92070.0,92054.0,0.09732557]
[1768310049233,0.00912818,92072.0,92054.0,0.09732557]
[1768310049428,0.010872,92068.0,92054.0,0.09732557]
[1768310050243,0.010872,92068.0,92056.0,0.09732557]
[1768310050445,0.010872,92070.0,92058.0,0.23808209]
[1768310050642,0.010872,92070.0,92060.0,0.13105359]
[1768310050643,0.002,92066.0,92060.0,0.13105359]
[1768310050944,0.010872,92070.0,92058.0,0.1070285]
[1768310051140,0.11243229,92077.0,92058.0,0.1070285]
[1768310051340,0.10156129,92075.0,92055.0,0.10819857]
[1768310051546,0.002,92068.0,92060.0,0.13105359]
[1768310051745,0.002,92068.0,92058.0,0.09732557]
[1768310052240,0.010872,92069.0,92058.0,0.09732557]
[1768310052438,0.010872,92069.0,92058.0,0.09832557]
[1768310054347,0.010872,92069.0,92058.0,0.06832557]
[1768310054547,0.002,92068.0,92058.0,0.07232557]
[1768310055349,0.012872,92069.0,92058.0,0.07232557]
[1768310056242,0.002,92068.0,92058.0,0.07232557]
[1768310056959,0.002,92068.0,92058.0,0.20337916]
[1768310057250,0.00941541,92075.0,92058.0,0.20337916]
[1768310057453,0.10725541,92075.0,92060.0,0.13105359]
[1768310057743,0.14022743,92080.0,92060.0,0.13105359]
[1768310058141,0.09784,92078.0,92060.0,0.13105359]
[1768310058341,0.001,92069.0,92060.0,0.13105359]
[1768310059151,0.010872,92071.0,92060.0,0.13205359]
[1768310059754,0.09784,92075.0,92060.0,0.13205359]
[1768310060550,0.010872,92071.0,92060.0,0.13205359]
[1768310060952,0.001,92069.0,92060.0,0.13405359]
[1768310061151,0.010872,92071.0,92060.0,0.13405359]
[1768310061351,0.09784,92075.0,92060.0,0.13405359]
[1768310061554,0.010872,92070.0,92060.0,0.13405359]
[1768310062154,0.010872,92070.0,92060.0,0.21607494]
[1768310062648,0.010872,92070.0,92060.0,0.21507494]
[1768310062954,0.09884,92075.0,92060.0,0.21507494]
[1768310063454,0.010872,92070.0,92060.0,0.21507494]
[1768310064255,0.011872,92070.0,92060.0,0.21707494]
[1768310064456,0.09784,92075.0,92060.0,0.21707494]
[1768310064950,0.09214588,92079.0,92060.0,0.21707494]